[Event "44th Chess Olympiad Women 2022"]
[Site "Chennai"]
[Date "2022.07.29"]
[Round "1.14"]
[White "Ordaz Valdes, Lisandra Teresa"]
[Black "Nakabo, Peninah"]
[Result "1-0"]
[ECO "D64"]
[WhiteElo "2367"]
[BlackElo "1747"]
[Annotator "TA"]
[PlyCount "93"]
[EventDate "2022.07.29"]
[EventType "team-tourn"]
[EventCountry "IND"]
[SourceTitle "playchess.com"]
[Source "ChessBase"]
[SourceQuality "1"]
[WhiteTeam "Cuba"]
[BlackTeam "Uganda"]
[WhiteTeamCountry "CUB"]
[BlackTeamCountry "UGA"]
[TimeControl "40/5400+30:1800+30"]

{[%evp 17,93,8,16,11,33,0,13,4,26,31,44,39,52,54,75,80,142,147,153,152,147,128,164,113,220,221,223,215,424,429,412,424,474,448,518,409,394,390,394,407,393,388,505,503,488,488,480,436,439,404,439,410,589,571,597,570,1442,1438,1261,539,899,943,1669,1627,2399,2043,29971,29972,29987,29988,29988,29989,29988,29989,29989,29990,29990,29989]} 1. d4 {[%emt 0:00:06]} e6 {[%emt 0:00:10]} 2. c4 {[%emt 0:00:07]} d5 {[%emt 0:00:13]} 3. Nc3 {[%emt 0:00:16]} Be7 {[%emt 0:00:30]} 4. Nf3 {[%emt 0:00:11]} Nf6 {[%emt 0:00:15]} 5. Bg5 {[%emt 0:00:09]} O-O {[%emt 0:00:34]} 6. e3 {[%emt 0:00:05]} Nbd7 {[%emt 0:04:07]} 7. Rc1 {[%emt 0:01:17]} c6 {[%emt 0:06:14]} 8. Qc2 {[%emt 0:01:21]} h6 {[%emt 0:00:48]} 9. Bh4 {[%emt 0:00:19]} a6 {[%emt 0:13:34] 9...b6 gains popularity.} 10. a3 {[%emt 0:06:31] [#] D64: Queen's Gambit Declined: Classical: 7 Rc1 c6 8 Qc2.} Ne8 $146 {[%emt 0:04:06][%cal Bf6e8,Be8d6,Bd6c4][%mdl 32]} ({Predecessor:} 10... b6 11. Bd3 Bb7 12. O-O c5 13. Bg3 dxc4 14. Bxc4 Bxf3 15. gxf3 b5 16. Ba2 cxd4 17. exd4 Nb6 18. Qd3 Rc8 19. Ne4 Qd7 20. Bb1 Rfd8 21. Rcd1 g6 22. Kh1 {½-½ (22) Sasikiran,K (2661)-Zvjaginsev,V (2674) Khanty-Mansiysk 2007}) 11. Bg3 {[%emt 0:09:36]} Nd6 {[%emt 0:01:38]} 12. cxd5 {[%emt 0:06:49] The position is equal.} exd5 {[%emt 0:00:46]} 13. Bd3 {[%emt 0:00:05]} Nb6 {[%emt 0:12:23]} 14. O-O {[%emt 0:03:29]} Ndc4 {[%emt 0:01:15]} 15. a4 {[%emt 0:04:42]} Bg4 {[%emt 0:03:17]} 16. b3 {[%emt 0:04:35][%cal Bb2b3,Bb3c4,Bc4c5][%mdl 32]} Bxf3 {[%emt 0:09:22]} (16... Nd6 $142) 17. bxc4 $16 {[%emt 0:00:47] c5 is the strong threat.} ({Resist} 17. gxf3 $6 Nd6 $14) 17... Bg4 {[%emt 0:00:22] [#]} 18. c5 {[%emt 0:01:10]} Nd7 {[%emt 0:01:37]} 19. Rb1 {[%emt 0:03:12] White is more active.} Ra7 {[%emt 0:02:49]} 20. f4 {[%emt 0:04:53][%cal Bf2f4,Bf4f5][%mdl 32]} Bh4 {[%emt 0:06:16]} (20... b6 $16) 21. Bxh4 $18 {[%emt 0:00:55]} Qxh4 {[%emt 0:00:16] [#]} 22. f5 $1 {[%emt 0:01:12]} f6 $2 {[%emt 0:03:59]} (22... Nf6 {is a better defense.} 23. Qf2 Qg5) 23. Rf4 {[%emt 0:09:14]} Qg5 {[%emt 0:04:39]} 24. Qf2 {[%emt 0:01:15][%cal Of4g4]} h5 {[%emt 0:02:26]} 25. Qg3 {[%emt 0:07:11]} ({Don't take} 25. e4 Ne5 $18) 25... Re8 {[%emt 0:04:52]} 26. h3 {[%emt 0:08:31]} Bxf5 {[%emt 0:10:27]} 27. Qxg5 {[%emt 0:00:17][%mdl 64] Remove Defender} fxg5 {[%emt 0:00:05]} 28. Rxf5 {[%emt 0:00:11]} Rxe3 {[%emt 0:00:20]} 29. Rf3 {[%emt 0:01:56]} Rxf3 {[%emt 0:01:22]} 30. gxf3 {[%emt 0:00:04]} Kf7 {[%emt 0:00:16]} 31. Bf5 {[%emt 0:00:05]} Nf8 {[%emt 0:02:21]} 32. Bc8 {[%emt 0:02:39]} Ne6 {[%emt 0:00:24]} 33. Bxe6+ {[%emt 0:00:10]} Kxe6 {[%emt 0:00:09][%mdl 4096] Endgame KRN-KR} 34. Re1+ {[%emt 0:00:01]} Kf6 {[%emt 0:00:31]} (34... Kf7 {was called for.} 35. Rb1 Kf6) 35. Re8 {[%emt 0:00:26]} Kf7 {[%emt 0:01:25]} 36. Rb8 {[%emt 0:00:11] And now a5 would win.} Ke6 {[%emt 0:00:30]} 37. a5 {[%emt 0:00:11]} Kf5 {[%emt 0:01:17]} 38. Kf2 {[%emt 0:00:11]} g4 {[%emt 0:00:16]} 39. fxg4+ {[%emt 0:00:15]} hxg4 {[%emt 0:00:10]} 40. h4 {[%emt 0:00:04]} g6 {[%emt 0:01:28]} 41. Kg3 {[%emt 0:30:13]} b5 {[%emt 0:31:25]} 42. cxb6 {[%emt 0:01:18] White mates.} Re7 {[%emt 0:00:17]} 43. Rf8+ {[%emt 0:00:05]} Ke6 {[%emt 0:00:33]} 44. Na4 {[%emt 0:00:24]} Kd6 {[%emt 0:00:48]} 45. Rd8+ {[%emt 0:00:29]} Ke6 {[%emt 0:00:20]} 46. Nc5+ {[%emt 0:01:02]} Kf7 {[%emt 0:00:14]} 47. Rd7 {[%emt 0:00:10] Black did not feel at home in the position after the opening.  Weighted Error Value: White=0.07 (flawless) /Black=0.54} 1-0

[Event "44th Chess Olympiad Women 2022"]
[Site "Chennai"]
[Date "2022.07.29"]
[Round "1.14"]
[White "Ampaire Shakira"]
[Black "Miranda Llanes, Yerisbel"]
[Result "0-1"]
[ECO "C68"]
[WhiteElo "1666"]
[BlackElo "2347"]
[Annotator "TA"]
[PlyCount "74"]
[EventDate "2022.07.29"]
[EventType "team-tourn"]
[EventCountry "IND"]
[SourceTitle "playchess.com"]
[Source "ChessBase"]
[SourceQuality "1"]
[WhiteTeam "Uganda"]
[BlackTeam "Cuba"]
[WhiteTeamCountry "UGA"]
[BlackTeamCountry "CUB"]
[TimeControl "40/5400+30:1800+30"]

{[%evp 13,74,19,26,0,5,0,0,-4,8,-36,-34,-31,-34,-25,-30,-35,107,41,38,31,36,-212,-206,-206,-200,-317,-339,-339,-338,-445,-438,-450,-444,-443,-443,-435,-438,-458,-431,-476,-439,-539,-535,-538,-535,-538,-539,-533,-533,-527,-524,-538,-463,-617,-613,-630,-614,-1479,-1475,-1422,-1400,-1179,-976]} 1. e4 {[%emt 0:00:18]} e5 {[%emt 0:00:17]} 2. Nf3 {[%emt 0:00:41]} Nc6 {[%emt 0:00:03]} 3. Bb5 {[%emt 0:00:59]} a6 {[%emt 0:00:29]} 4. Bxc6 {[%emt 0:01:13]} dxc6 {[%emt 0:00:15]} 5. O-O {[%emt 0:03:37]} Bd6 {[%emt 0:04:31]} 6. d4 {[%emt 0:02:22]} exd4 {[%emt 0:00:49]} 7. Qxd4 {[%emt 0:00:59]} f6 $1 {[%emt 0:00:48]} 8. Nc3 {[%emt 0:16:01] C68: Ruy Lopez: Exchange Variation, sidelines.} Ne7 {[%emt 0:06:55]} 9. e5 {[%emt 0:07:19]} fxe5 {[%emt 0:04:33]} 10. Nxe5 {[%emt 0:01:09] [#] The position is equal.} O-O $146 {[%emt 0:03:45]} ({Predecessor:} 10... c5 11. Qf4 Bf5 12. Re1 Qc8 13. Ne4 O-O 14. Nxd6 cxd6 15. Nc4 Nd5 16. Qg3 Bxc2 17. b3 Rf6 18. Bg5 Rg6 19. Rac1 Qf5 20. h4 h6 21. Nxd6 Qd3 22. Qxd3 Bxd3 {0-1 (22) Deac,B (2625)-Fedoseev,V (2678) Chess.com INT 2020}) 11. Qc4+ {[%emt 0:03:39]} Nd5 $1 {[%emt 0:00:34]} 12. Nxd5 {[%emt 0:01:15] Threatening mate with Ne7+.} Be6 {[%emt 0:05:57]} 13. Nxc6 {[%emt 0:03:40]} bxc6 {[%emt 0:02:01]} 14. Qxc6 {[%emt 0:01:34][%cal Od5f4] [#]} Kh8 {[%emt 0:08:25]} (14... Qh4 $2 {[#]} 15. Bf4 $1 $18 {[%mdl 512]}) (14... Bxh2+ $1 $15 {stays ahead.} 15. Kxh2 Bxd5) 15. f4 {[%emt 0:05:29]} (15. g3 $16) 15... Bd7 $14 {[%emt 0:06:38] This bishop pair is nice.} 16. Qc3 {[%emt 0:01:37]} c6 {[%emt 0:03:22]} 17. Nb4 {[%emt 0:00:49] This move loses the game for White.} (17. Ne3 $14 {is the one way to stay ahead.}) 17... Qb6+ $19 {[%emt 0:00:22]} 18. Be3 {[%emt 0:01:24]} Qxb4 {[%emt 0:00:22]} 19. Qd3 {[%emt 0:01:05]} (19. Qxb4 $142 Bxb4 20. a3) 19... Bf5 {[%emt 0:00:44]} 20. Qb3 {[%emt 0:01:19]} Rfe8 {[%emt 0:03:58]} 21. Rae1 {[%emt 0:10:34]} Qxb3 {[%emt 0:00:41] Black is clearly winning.} 22. cxb3 {[%emt 0:00:16]} Bb4 {[%emt 0:00:12]} 23. Kf2 {[%emt 0:08:50]} Bxe1+ {[%emt 0:00:42]} 24. Rxe1 {[%emt 0:00:02]} Rad8 {[%emt 0:00:43]} 25. h3 {[%emt 0:01:02]} Kg8 {[%emt 0:00:59]} 26. g4 {[%emt 0:00:21]} Be4 {[%emt 0:00:51]} 27. Rc1 {[%emt 0:02:14]} Rd3 {[%emt 0:00:47]} 28. Rc3 {[%emt 0:02:43]} Rxc3 {[%emt 0:03:02]} 29. bxc3 {[%emt 0:03:09] [#]} Bg2 $1 {[%emt 0:00:30][%mdl 512]} 30. h4 {[%emt 0:00:33]} Bh3 {[%emt 0:00:18]} 31. g5 {[%emt 0:00:48]} Bg4 {[%emt 0:00:30]} 32. b4 {[%emt 0:01:01]} Kf7 {[%emt 0:00:53]} 33. a4 {[%emt 0:02:06]} Re4 {[%emt 0:01:15]} 34. a5 {[%emt 0:04:04]} Bh5 {[%emt 0:02:02] And now ...Kg6 would win.} 35. Bb6 {[%emt 0:04:37]} Rxf4+ {[%emt 0:00:29]} 36. Ke3 {[%emt 0:00:21]} Rxh4 {[%emt 0:00:19]} 37. Bd8 {[%emt 0:00:12]} Bg6 {[%emt 0:00:36] Weighted Error Value: White=0.47/Black=0.13 (very precise)} 0-1

[Event "44th Chess Olympiad Women 2022"]
[Site "Chennai"]
[Date "2022.07.29"]
[Round "1.14"]
[White "Kawuma Patricia"]
[Black "Hernandez Gil, Ineymig"]
[Result "0-1"]
[ECO "B13"]
[WhiteElo "1653"]
[BlackElo "2234"]
[Annotator "TA"]
[PlyCount "110"]
[EventDate "2022.07.29"]
[EventType "team-tourn"]
[EventCountry "IND"]
[SourceTitle "playchess.com"]
[Source "ChessBase"]
[SourceQuality "1"]
[WhiteTeam "Uganda"]
[BlackTeam "Cuba"]
[WhiteTeamCountry "UGA"]
[BlackTeamCountry "CUB"]
[TimeControl "40/5400+30:1800+30"]

{[%evp 10,110,34,29,25,33,34,8,6,0,0,0,0,-1,0,0,0,-10,0,-13,-8,-12,2,5,7,0,0,-20,15,0,0,-26,0,0,7,0,14,-4,7,-9,-13,-17,0,0,0,-22,6,0,0,-31,3,0,17,21,25,0,58,5,8,-4,0,0,0,0,0,0,0,0,0,-122,-131,-395,-395,-395,-395,-389,-388,-395,-394,-500,-408,-671,-667,-818,-809,-791,-786,-772,-702,-1411,-1342,-2510,-2241,-29980,-29981,-29985,-29968,-29986,-29987,-29987,-29988,-29991,-29992]} 1. e4 {[%emt 0:00:03]} c6 {[%emt 0:01:40]} 2. d4 {[%emt 0:00:30]} d5 {[%emt 0:00:11]} 3. exd5 {[%emt 0:00:16]} cxd5 {[%emt 0:00:12]} 4. Bd3 {[%emt 0:00:19]} Nc6 {[%emt 0:00:18]} 5. c3 {[%emt 0:00:34]} Nf6 {[%emt 0:00:19]} 6. h3 {[%emt 0:00:20]} Ne4 {[%emt 0:03:23] B13: Caro-Kann: Exchange Variation and Panov-Botvinnik Attack.} 7. Nd2 {[%emt 0:02:56][%cal Bb1d2,Bd2b3,Bb3c5,Bc5d3,Bd3f4][%mdl 32]} Nd6 {[%emt 0:03:02] [#]} 8. Ngf3 $146 {[%emt 0:00:38]} ({Predecessor:} 8. Qf3 e5 9. dxe5 Nxe5 10. Qe2 Qe7 11. Bc2 Bf5 12. Bxf5 Nxf5 13. Ngf3 Nd3+ 14. Kf1 Qxe2+ 15. Kxe2 {1-0 (53) Alekseev,E (2647)-Kovalenko,I (2663) Sochi 2019}) 8... Bf5 {[%emt 0:01:52] The position is equal.} 9. Bxf5 {[%emt 0:03:30]} Nxf5 {[%emt 0:00:30]} 10. Nb3 {[%emt 0:00:39]} e6 {[%emt 0:03:25]} 11. Bf4 {[%emt 0:02:22]} Bd6 {[%emt 0:03:52]} 12. Bxd6 {[%emt 0:01:20]} Qxd6 {[%emt 0:01:32]} 13. O-O {[%emt 0:00:33]} O-O {[%emt 0:02:13]} 14. Nc5 {[%emt 0:01:11]} b6 {[%emt 0:03:34]} 15. Nd3 {[%emt 0:01:57]} Rfc8 {[%emt 0:08:28]} 16. Qd2 {[%emt 0:05:34]} Rab8 {[%emt 0:05:45]} 17. Qg5 {[%emt 0:02:00]} h6 {[%emt 0:02:51]} 18. Qg4 {[%emt 0:00:54]} Na5 {[%emt 0:08:21]} 19. Nf4 {[%emt 0:02:31]} Nc4 {[%emt 0:03:31]} 20. Rab1 {[%emt 0:06:06]} Qd8 {[%emt 0:09:35]} 21. Rfe1 {[%emt 0:01:02]} Ncd6 {[%emt 0:07:37]} 22. Ne5 {[%emt 0:05:10]} Rb7 {[%emt 0:03:34]} 23. Re2 {[%emt 0:01:30]} Qg5 {[%emt 0:06:27]} 24. Qxg5 {[%emt 0:01:28]} (24. Ra1 {is more complex.} a5 25. a4 Ne4 26. Nf3) 24... hxg5 {[%emt 0:00:08]} 25. Nfd3 {[%emt 0:00:33]} Ne4 {[%emt 0:02:27]} 26. Nf3 {[%emt 0:03:16]} Rbc7 {[%emt 0:03:00]} 27. Nd2 {[%emt 0:00:55]} Ned6 {[%emt 0:02:03]} 28. Nf3 {[%emt 0:00:30]} Ne4 {[%emt 0:00:43]} 29. Nd2 {[%emt 0:00:17]} Nf6 {[%emt 0:03:28]} 30. Nf3 {[%emt 0:00:48]} g4 {[%emt 0:00:47]} 31. hxg4 {[%emt 0:00:50]} Nxg4 {[%emt 0:00:09]} 32. Nfe5 {[%emt 0:00:38]} Nf6 {[%emt 0:01:46]} ({Better is} 32... Nxe5 $11 33. Rxe5 g6) 33. Rbe1 {[%emt 0:01:07]} (33. g4 $14 Nd6 34. Kg2) 33... Ne4 {[%emt 0:02:13][%cal Bf6e4,Be4g3,Bg3f5,Bf5d4][%mdl 32]} 34. Ng4 {[%emt 0:01:08]} g6 {[%emt 0:02:52]} 35. Ne3 {[%emt 0:02:30]} Nfd6 {[%emt 0:01:16]} 36. f3 {[%emt 0:02:16]} Ng3 {[%emt 0:01:53]} 37. Rc2 {[%emt 0:00:03]} Kg7 {[%emt 0:00:57]} 38. Kf2 {[%emt 0:01:24]} Ngf5 {[%emt 0:01:12]} 39. Nd1 {[%emt 0:02:00]} (39. Nxf5+ $11 {keeps the balance.} Nxf5 40. Rcc1) 39... Nxd4 $1 $17 {[%emt 0:00:48] Black is more active.} 40. Rd2 {[%emt 0:00:54][%mdl 8192] [#] White does not recover from this.} (40. Rc1 $17) 40... Nc4 $19 {[%emt 0:00:50]} 41. Rde2 {[%emt 0:31:25]} Nxe2 {[%emt 0:30:14]} 42. Rxe2 {[%emt 0:00:03]} Kf6 {[%emt 0:00:53]} 43. Ne3 {[%emt 0:00:21]} Nxe3 {[%emt 0:00:21]} 44. Rxe3 {[%emt 0:00:09][%mdl 4096] Endgame KRR-KRN} Rd8 {[%emt 0:00:00]} 45. Nc1 {[%emt 0:00:00]} (45. Re2 $142) 45... d4 {[%emt 0:00:00]} 46. Rd3 {[%emt 0:00:00] [#]} dxc3 $1 {[%emt 0:00:00]} 47. Rxc3 {[%emt 0:00:00]} Rxc3 {[%emt 0:00:00]} 48. bxc3 {[%emt 0:00:00] KR-KN} Rd2+ {[%emt 0:00:00]} 49. Kg3 {[%emt 0:00:00]} Rc2 {[%emt 0:00:00][%csl LRc1,LRc3]} 50. Nb3 {[%emt 0:00:00]} Rxa2 {[%emt 0:00:00]} 51. Kh2 {[%emt 0:00:00]} a5 {[%emt 0:00:00][%cal Ba7a5,Ba5a4,Ba4a3,Ba3a2][%mdl 32] Black mates.} 52. Nd4 {[%emt 0:00:00]} a4 {[%emt 0:00:00]} 53. Kg3 {[%emt 0:00:00]} Rb2 {[%emt 0:00:00]} 54. Nc6 {[%emt 0:00:00]} a3 {[%emt 0:00:00]} 55. Kf4 {[%emt 0:00:00]} a2 {[%emt 0:00:00] Weighted Error Value: White=0.58/Black=0.09 (flawless)} 0-1

[Event "44th Chess Olympiad Women 2022"]
[Site "Chennai"]
[Date "2022.07.29"]
[Round "1.15"]
[White "Krasteva, Beloslava"]
[Black "Shaba, Linda Dalitso"]
[Result "1-0"]
[ECO "C02"]
[WhiteElo "2249"]
[BlackElo "1658"]
[Annotator "TA"]
[PlyCount "99"]
[EventDate "2022.07.29"]
[EventType "team-tourn"]
[EventCountry "IND"]
[SourceTitle "playchess.com"]
[Source "ChessBase"]
[SourceQuality "1"]
[WhiteTeam "Bulgaria"]
[BlackTeam "Zimbabwe"]
[WhiteTeamCountry "BUL"]
[BlackTeamCountry "ZIM"]
[TimeControl "40/5400+30:1800+30"]

{[%evp 12,99,43,35,111,101,94,91,109,103,136,137,189,159,174,103,141,138,186,110,256,245,236,223,222,249,221,210,214,216,249,245,231,223,223,223,216,206,216,214,420,200,351,342,331,104,72,0,318,177,284,284,252,254,317,360,335,301,352,343,356,318,392,375,382,381,340,300,437,318,369,260,525,516,745,724,733,720,944,942,2465,2425,1591,1017,990,1042,1013,952,1241,6037]} 1. d4 {[%emt 0:00:08]} e6 {[%emt 0:00:08]} 2. e4 {[%emt 0:00:15]} d5 {[%emt 0:00:07]} 3. e5 {[%emt 0:00:11]} c5 {[%emt 0:00:09]} 4. c3 {[%emt 0:00:18]} Nc6 {[%emt 0:00:39]} 5. Nf3 {[%emt 0:00:13]} cxd4 {[%emt 0:01:06]} 6. cxd4 {[%emt 0:01:57]} Qb6 {[%emt 0:04:16]} 7. a3 {[%emt 0:02:30]} a5 {[%emt 0:03:31] C02: French: Advance Variation.} ({Black should try} 7... Nh6 $14) 8. Nc3 $16 {[%emt 0:02:20]} Bd7 {[%emt 0:01:47]} 9. Be3 {[%emt 0:04:58]} Nge7 {[%emt 0:01:40] [#] White is better.} (9... Qxb2 $2 10. Na4 Bb4+ 11. axb4 Qxb4+ 12. Bd2 $18) 10. Bd3 $1 {[%emt 0:02:00] White is more active.} Ng6 {[%emt 0:02:41]} (10... Qxb2 $2 11. Na4 Qxa1 12. Qxa1 $18) 11. h4 {[%emt 0:03:58]} h5 {[%emt 0:06:18] [#]} (11... Qxb2 $2 12. Na4 Qxa3 13. Rxa3 Bxa3 14. Nb6 Bb4+ 15. Kf1 $18) (11... h6 $16 12. Na4 Qd8) 12. Bxg6 $146 {[%emt 0:07:23]} ({Predecessor:} 12. O-O Nge7 13. Rc1 Ng8 14. Na4 Qc7 15. Qb3 Be7 16. Nb6 {1-0 (46) Martinez Tormo,J (2182)-Pous Bargues,J (2115) Valencia 2009}) 12... fxg6 {[%emt 0:00:18]} 13. Qd2 {[%emt 0:02:05]} (13. Ne2 $18) 13... Ne7 {[%emt 0:06:20]} 14. Ne2 {[%emt 0:00:41]} Rc8 {[%emt 0:02:03] [#]} (14... Nf5 $16 {was necessary.}) 15. Nf4 {[%emt 0:02:15]} ({Better is} 15. O-O $1 $18) 15... Rh6 {[%emt 0:21:36]} (15... Qb5 $16 {was called for.} 16. Ng5 Nf5) 16. O-O $18 {[%emt 0:03:27]} Nf5 {[%emt 0:00:57]} 17. Rac1 {[%emt 0:04:32]} Rxc1 {[%emt 0:01:33]} 18. Rxc1 {[%emt 0:00:40]} ({But not} 18. Qxc1 $6 Be7 $16) 18... Be7 {[%emt 0:00:43]} 19. Nh3 {[%emt 0:10:59]} Rh8 {[%emt 0:04:51]} 20. Bg5 {[%emt 0:01:54]} Rf8 {[%emt 0:04:43]} 21. Bxe7 {[%emt 0:02:08]} Nxe7 {[%emt 0:03:40]} 22. Nf4 {[%emt 0:05:07]} Rxf4 {[%emt 0:10:05]} 23. Qxf4 {[%emt 0:00:12] aiming for Qd2.} Qxb2 {[%emt 0:00:35]} 24. Qe3 {[%emt 0:02:10]} Nf5 {[%emt 0:04:53]} 25. Qc3 {[%emt 0:00:36]} Qb5 {[%emt 0:01:45]} (25... Qxc3 {keeps fighting.} 26. Rxc3 Kd8) 26. g3 {[%emt 0:03:59]} (26. Qc7 $142 Ke7 27. Rc5) 26... Qe2 $2 {[%emt 0:04:45]} (26... Bc6 {might work better.} 27. Kg2 a4) 27. Re1 {[%emt 0:02:11][%cal Bc1e1,Be1e2,Be2b2,Bb2b4][%mdl 32]} Qb5 {[%emt 0:02:35]} 28. Nd2 $2 {[%emt 0:06:16]} (28. Qc7 $18 {is more deadly.}) 28... Qa4 $16 {[%emt 0:04:53]} 29. Nf3 $2 {[%emt 0:02:05]} (29. Rb1 $16 Nxd4 30. Qd3) 29... Qb5 $18 {[%emt 0:01:03] White leaves nothing to chance now.} 30. Kg2 {[%emt 0:02:53]} (30. Qc7 $142) 30... Qb6 {[%emt 0:01:20]} (30... Bc6 $142 31. Qc2 Qc4) 31. Re2 {[%emt 0:02:30] Black must now prevent Rb2.} Bc6 {[%emt 0:02:03]} 32. Rb2 {[%emt 0:01:16]} Qc7 {[%emt 0:01:07]} 33. Ng5 {[%emt 0:02:55]} Kd7 {[%emt 0:01:34]} 34. Qc5 {[%emt 0:02:34]} a4 {[%emt 0:00:40]} 35. Rb4 {[%emt 0:01:53] Strongly threatening Qf8. Chess con chili.} Qd8 {[%emt 0:01:01] Inhibits Qf8.} 36. Qc1 {[%emt 0:04:32]} Qa5 {[%emt 0:00:27]} 37. f3 {[%emt 0:01:00]} Qa6 {[%emt 0:00:32]} 38. Qd2 {[%emt 0:02:04] Inhibits Qe2+.} Qa8 {[%emt 0:00:14]} 39. Nh3 {[%emt 0:01:12][%cal Bg5h3,Bh3f4,Bf4d3,Bd3f4,Bf4e6,Be6d8][%mdl 32]} Ke7 {[%emt 0:00:31]} (39... Qe8 {was worth a try.} 40. g4 Ne7) 40. Nf4 {[%emt 0:00:49]} Qe8 {[%emt 0:00:27]} 41. Nd3 {[%emt 0:32:19] And now g4 would win.} Qa8 $2 {[%emt 0:30:47]} (41... Kf7 42. Nc5 b5) 42. g4 {[%emt 0:05:51] White is clearly winning.} hxg4 {[%emt 0:00:36]} 43. fxg4 {[%emt 0:00:20]} Nh6 {[%emt 0:00:22]} 44. Qg5+ {[%emt 0:00:37]} Kf7 {[%emt 0:00:14]} 45. Nf4 {[%emt 0:00:39]} Qc8 {[%emt 0:00:51]} 46. Qxg6+ {[%emt 0:00:00]} Kg8 {[%emt 0:00:00]} 47. Nxe6 {[%emt 0:00:00][%csl Ge6][%cal Rg6g7]} Qd7 {[%emt 0:00:00]} 48. Rb1 {[%emt 0:00:00] White wants to mate with Rf1.} Qf7 {[%emt 0:00:00]} 49. Qxf7+ {[%emt 0:00:00]} Kxf7 {[%emt 0:00:00]} 50. Nd8+ {[%emt 0:00:00] Weighted Error Value: White=0.33/Black=0.47} 1-0

[Event "44th Chess Olympiad Women 2022"]
[Site "Chennai"]
[Date "2022.07.29"]
[Round "1.15"]
[White "Makwena, Christine"]
[Black "Antova, Gabriela"]
[Result "0-1"]
[ECO "D00"]
[WhiteElo "1609"]
[BlackElo "2275"]
[Annotator "TA"]
[PlyCount "82"]
[EventDate "2022.07.29"]
[EventType "team-tourn"]
[EventCountry "IND"]
[SourceTitle "playchess.com"]
[Source "ChessBase"]
[SourceQuality "1"]
[WhiteTeam "Zimbabwe"]
[BlackTeam "Bulgaria"]
[WhiteTeamCountry "ZIM"]
[BlackTeamCountry "BUL"]
[TimeControl "40/5400+30:1800+30"]

{[%evp 9,82,-39,-39,-41,-54,-43,-46,-71,-49,-84,-75,-97,-36,-39,0,-45,-53,-110,-116,-120,-115,-171,-166,-158,-166,-150,-150,-158,-103,-161,-141,-142,-144,-158,-163,-226,-192,-229,-236,-239,-243,-265,-188,-292,-297,-275,-237,-311,-319,-446,-446,-596,-416,-602,-586,-529,-525,-416,-254,-254,-177,-190,0,0,0,0,0,-57,0,0,0,-630,-593,-5406,-2502]} 1. d4 {[%emt 0:00:04]} d5 {[%emt 0:00:12]} 2. Bg5 {[%emt 0:00:15]} f6 {[%emt 0:00:30]} 3. Bf4 {[%emt 0:01:39]} Nc6 {[%emt 0:00:18]} 4. e3 {[%emt 0:01:00]} e5 {[%emt 0:00:49]} 5. dxe5 {[%emt 0:05:27]} fxe5 {[%emt 0:00:18]} 6. Bg3 {[%emt 0:00:09] D00: 1 d4 d5: Unusual lines.} Nf6 {[%emt 0:01:14]} 7. Bb5 {[%emt 0:01:23]} Bd6 {[%emt 0:00:37]} 8. Nf3 {[%emt 0:04:28] Black is slightly better.} Bg4 {[%emt 0:05:42] [#] Strongly threatening ...e4.} 9. Be2 $146 {[%emt 0:02:01]} ({Predecessor:} 9. h3 Bh5 10. Be2 e4 11. Nd4 Bxe2 12. Nxe2 Qd7 13. Bxd6 Qxd6 14. Nbc3 a6 15. Nd4 {0-1 (32) Murtas,P (1518)-Pitzanti,M (1598) Capoterra 2012}) 9... Qe7 {[%emt 0:09:14]} 10. c3 {[%emt 0:07:39]} Qd7 {[%emt 0:19:31]} (10... e4 $17 11. Nd4 Bxe2 12. Nxe2 Bxg3 13. Nxg3 O-O-O) 11. Nbd2 $15 {[%emt 0:29:20]} O-O {[%emt 0:02:56]} 12. O-O {[%emt 0:01:57][%cal Oe3e4]} (12. e4 $5) 12... e4 {[%emt 0:08:38]} 13. Nd4 {[%emt 0:05:11] [#]} (13. Bxd6 $1 $15 Qxd6 14. Nd4) 13... Bxg3 $1 $17 {[%emt 0:00:42]} 14. fxg3 {[%emt 0:08:02][%cal Of1f6]} Ne5 {[%emt 0:02:42]} 15. Bxg4 {[%emt 0:05:07]} (15. b4 $17 {was called for.}) 15... Nfxg4 $19 {[%emt 0:00:40]} 16. Qe2 {[%emt 0:00:41]} c5 {[%emt 0:05:55]} 17. Nc2 {[%emt 0:02:08]} Nd3 {[%emt 0:07:40]} 18. b3 {[%emt 0:02:44]} Nf6 {[%emt 0:06:03]} ({Better is} 18... Ngf2 19. Ne1 Rf7 20. Nxd3 exd3) 19. c4 {[%emt 0:05:53]} (19. Rad1 $17 {was worth a try.}) 19... dxc4 {[%emt 0:03:00]} 20. Nxc4 {[%emt 0:02:25]} b5 {[%emt 0:00:25]} 21. Nd2 {[%emt 0:00:48]} Rad8 {[%emt 0:01:02]} 22. Rab1 {[%emt 0:06:07]} (22. h3 $142) 22... Qe6 {[%emt 0:08:49]} 23. Rbd1 {[%emt 0:01:53]} Rfe8 {[%emt 0:01:28]} 24. Nb1 {[%emt 0:01:46]} Nd5 {[%emt 0:01:35]} 25. Qh5 {[%emt 0:00:38]} a6 {[%emt 0:01:30]} 26. Qf5 {[%emt 0:00:42]} (26. g4 {keeps fighting.}) 26... Qe7 {[%emt 0:02:39] Active counter play!} 27. Qg4 {[%emt 0:01:32]} Rf8 {[%emt 0:02:52]} 28. Qe2 {[%emt 0:01:16]} Qg5 {[%emt 0:00:51]} 29. Rxf8+ {[%emt 0:00:27]} Rxf8 {[%emt 0:00:05]} 30. Rf1 {[%emt 0:00:48]} Rxf1+ {[%emt 0:01:11]} 31. Kxf1 {[%emt 0:00:07]} (31. Qxf1 $142 Nxe3 32. Nxe3 Qxe3+ 33. Kh1) 31... Qf6+ {[%emt 0:00:34]} 32. Kg1 {[%emt 0:00:36]} Qb2 {[%emt 0:00:24][%csl LRa2,LRb1]} 33. Qd1 {[%emt 0:00:51]} h6 $40 {[%emt 0:03:35][%cal Od5e3][%mdl 128] aiming for ...Nxe3! White is in trouble.} 34. h3 {[%emt 0:00:10]} Qf6 {[%emt 0:03:12]} 35. Qe2 {[%emt 0:00:51]} c4 $2 {[%emt 0:00:23]} (35... Qg5 $19 36. Ne1 c4 37. bxc4 bxc4) 36. bxc4 $11 {[%emt 0:00:23]} bxc4 {[%emt 0:00:01]} 37. Nd2 {[%emt 0:00:24][%csl LRc4,LRe4]} Nc3 {[%emt 0:00:26]} 38. Qf1 {[%emt 0:00:16]} ({White should play} 38. Qg4 $1 $11) 38... Qc6 {[%emt 0:01:01]} (38... Qxf1+ $15 39. Kxf1 Ne5) 39. Nd4 {[%emt 0:00:34]} Qc5 {[%emt 0:00:09]} 40. Qf5 $2 {[%emt 0:01:14][%mdl 8192] [#]} (40. Kh2 $11) 40... Ne2+ $1 $19 {[%emt 0:00:23][%mdl 512]} 41. Nxe2 {[%emt 0:31:16]} (41. Kh2 Qxf5) 41... Qxf5 {[%emt 0:00:04] Weighted Error Value: White=0.71/Black=0.24 (precise)} 0-1